Cogmind - Beta 13 @@@ ROGUE MODE // 2024.03.12 @ 14:56:22 Player: Puck Result: Self-destructed Performance ------------- Evolutions (1) 500 Regions Visited (3) 600 Robots Destroyed (6) 30 Value Destroyed (108) 108 Prototype IDs (2) 40 Alien Tech Used (0) 0 Bonus (0) 0 TOTAL SCORE: 1278 Bonus ------- None Cogmind --------- Core Integrity 303/400 Matter 216/300 Energy 100/100 System Corruption 0% Temperature Cool (9) Movement Rolling (80) Location -9/Materials Parts ------- > --- POWER (1) -------- (None) > --- PROPULSION (3) --- Wheel > --- UTILITY (3) ------ Small Storage Unit > --- WEAPON (2) ------- Katana > --- INVENTORY (8) ---- Light Ion Engine Wheel Hover Unit Hover Unit High-capacity Matter Pod (0) Peak State ------------ > --- POWER ------------ Light Ion Engine > --- PROPULSION ------- Flight Unit Flight Unit Flight Unit > --- UTILITY ---------- Small Storage Unit > --- WEAPON ----------- Medium Laser Katana > --- INVENTORY -------- Light Ion Engine Wheel Wheel Hover Unit Hover Unit High-capacity Matter Pod [Rating: 9] Favorites ----------- Power Light Ion Engine Engine Light Ion Engine Propulsion Hover Unit Leg Aluminum Leg Wheel Wheel Hover Unit Hover Unit Flight Unit Flight Unit Utility Small Storage Unit Storage Small Storage Unit Weapon Medium Laser Energy Gun Medium Laser Ballistic Gun Assault Rifle Slashing Weapon Katana Build | -11 -10 -10 -9 ------- Run | Yrd Mat Min Mat Slots Evolved 2 | . . . 2 Power . | . . . . Propulsion 1 | . . . 1 Utility 1 | . . . 1 Weapon . | . . . . Parts Attached 13 | 2 5 1 5 Power . | . . . . Engine . | . . . . Core . | . . . . Reactor . | . . . . Propulsion 11 | 2 5 . 4 Treads . | . . . . Leg . | . . . . Wheel 3 | 2 . . 1 Hover 5 | . 5 . . Flight 3 | . . . 3 Utility . | . . . . Device . | . . . . Storage . | . . . . Processor . | . . . . Hackware . | . . . . Protection . | . . . . Artifact . | . . . . Weapon 2 | . . 1 1 Energy Gun . | . . . . Energy Cannon . | . . . . Ballistic Gun 1 | . . 1 . Ballistic Cannon . | . . . . Launcher . | . . . . Special Weapon . | . . . . Impact Weapon . | . . . . Slashing Weapon 1 | . . . 1 Piercing Weapon . | . . . . Special Melee Weapon . | . . . . Unidentified Prototypes . | . . . . Parts Lost 4 | . . . 4 Power 1 | . . . 1 Propulsion 3 | . . . 3 Utility . | . . . . Weapon . | . . . . Highest Loss Streak 4 | . . . 4 To Critical Strikes . | . . . . Average Slot Usage (%) 81 | . 85 85 62 Engine 13 | . 14 14 11 Wheel 7 | . 10 . . Hover 15 | . 17 28 . Flight 4 | . . . 29 Storage 13 | . 14 14 11 Energy Gun 11 | . 14 14 . Ballistic Gun 11 | . 14 14 . Slashing Weapon 1 | . . . 11 Naked Turns . | . . . . Heaviest Build 12 | 12 12 12 10 Greatest Support 20 | 20 20 12 12 Greatest Overweight (x) . | . . . . Average Overweight (x) . | . . . . Largest Inventory Capacity 8 | 8 8 8 8 Average Capacity 8 | 8 8 8 8 Most Carried 8 | 6 8 8 7 Average Carried 6 | 6 7 8 6 Final Capacity 8 | 8 8 8 8 Final Carried 8 | 6 8 8 5 Class Distribution -------------------- 100% | Mutant Dominant Class ---------------- Mutant | -10/Materials Mutant | -10/Mines Mutant | -9/Materials Resources | -11 -10 -10 -9 ----------- Run | Yrd Mat Min Mat Matter Collected 247 | 200 47 . . Remotely . | . . . . Salvage Created 152 | . 142 . 10 Parts 11 | . 9 . 2 Haulers Intercepted . | . . . . Recyclers Shooed . | . . . . Parts Field Recycled . | . . . . Retrieved Matter . | . . . . Parts Self-Destructed . | . . . . Prevented . | . . . . Kills | -11 -10 -10 -9 ------- Run | Yrd Mat Min Mat Combat Hostiles Destroyed 6 | . 5 . 1 Melee 1 | . . . 1 Guns 5 | . 5 . . Classes Destroyed 2 | . 2 . . Swarmer 4 | . 3 . 1 Grunt 2 | . 2 . . Best Kill Streak 5 | . 5 . 1 Combat Bots Only 5 | . 5 . 1 Max Kills in Single Turn 2 | . 2 . 1 Gunslinging 1 | . 1 . . Exploded . | . . . . Melee 1 | . . . 1 Uniques/NPCs Destroyed . | . . . . Combat | -11 -10 -10 -9 -------- Run | Yrd Mat Min Mat Hostile Shots Fired 44 | . 15 1 28 Missed 15 | . 6 1 8 Damage Taken 309 | . 91 . 218 Core 108 | . 11 . 97 Absorbed by Shields . | . . . . Core Remaining (%) 97 | 100 . 95 . Volleys Fired 7 | . 7 . . Largest 2 | . 2 . . Hottest 70 | . 70 . . Shots Fired 14 | . 14 . . Gun 14 | . 14 . . Cannon . | . . . . Launcher . | . . . . Special . | . . . . Kinetic 7 | . 7 . . Thermal 7 | . 7 . . Explosive . | . . . . Electromagnetic . | . . . . Robot Hit Streak 12 | . 12 . . Robot Miss Streak 2 | . 2 . . Penetration Max . | . . . . Secondary Targets 1 | . 1 . . Max Gunslinging Chain 1 | . 1 . . Shots Hit Robots 16 | . 12 . 4 Core Hits 8 | . 7 . 1 Critical Kills . | . . . . Critical Parts Destroyed . | . . . . Critical Strikes 1 | . 1 . . Burn 1 | . 1 . . Melee Attacks 4 | . . . 4 Impact . | . . . . Slashing 4 | . . . 4 Piercing . | . . . . Sneak Attacks . | . . . . Combat Hostiles . | . . . . Follow-up Attacks . | . . . . Damage Inflicted 283 | . 158 . 125 Guns 158 | . 158 . . Cannons . | . . . . Explosions . | . . . . Melee 125 | . . . 125 Ramming . | . . . . Kinetic 81 | . 81 . . Thermal 77 | . 77 . . Explosive . | . . . . Electromagnetic . | . . . . Impact . | . . . . Slashing 125 | . . . 125 Piercing . | . . . . Highest Corruption 2 | . 2 2 . Average Corruption 2 | . 2 2 . Corruption Purged . | . . . . Corruption Blocked . | . . . . Overload Shots . | . . . . Overflow Damage . | . . . . Projectiles . | . . . . Explosions . | . . . . Melee . | . . . . Knockbacks . | . . . . Impact . | . . . . Kinetic . | . . . . Secondary . | . . . . Self-Inflicted Damage . | . . . . Shots . | . . . . Rammed . | . . . . Targets Rammed . | . . . . Kicked . | . . . . Crushed . | . . . . Highest Temperature 44 | . 44 . . Average Temperature 19 | . 19 . . Received Heat Transfer 84 | . 30 . 54 Siege Activations . | . . . . Robots Corrupted . | . . . . Combat Hostiles . | . . . . Parts Fried . | . . . . Impact Corruptions . | . . . . Robots Melted . | . . . . Combat Hostiles . | . . . . Parts Melted 2 | . 2 . . Heat Transferred 296 | . 296 . . Parts Sabotaged . | . . . . Parts Stolen . | . . . . Parts Stripped . | . . . . Power Chain Reactions . | . . . . Alert | -11 -10 -10 -9 ------- Run | Yrd Mat Min Mat Peak Influence 203 | . 203 78 54 Initial 78 | . . 78 29 Average 62 | . 68 78 34 Maximum Alert Level 1 | . 1 . . Low Security (%) 99 | 100 99 100 100 Level 1 . | . . . . Level 2 . | . . . . Level 3 . | . . . . Level 4 . | . . . . Level 5 . | . . . . High Security . | . . . . Max Security . | . . . . Squads Dispatched 2 | . 1 . 1 Investigation . | . . . . Extermination . | . . . . Reinforcement 2 | . 1 . 1 Assault . | . . . . Garrison . | . . . . Intercept . | . . . . Searches Triggered . | . . . . Construction Impeded . | . . . . Haulers Reinforced . | . . . . Active Scanning Responses . | . . . . Cargo Convoy Interrupts . | . . . . Stealth | -11 -10 -10 -9 --------- Run | Yrd Mat Min Mat Distress Signals 2 | . . . 2 Communications Jammed . | . . . . Distress Signals . | . . . . Times Spotted 19 | . 8 2 9 Peak Tracking Total 10 | . 3 2 10 Tactical Retreats . | . . . . Traps | -11 -10 -10 -9 ------- Run | Yrd Mat Min Mat Traps Triggered 1 | . 1 . . Indirectly . | . . . . Trap Hack Attempts . | . . . . Triggered . | . . . . Disarmed . | . . . . Reprogrammed . | . . . . Reused . | . . . . Traps Extracted . | . . . . Installed . | . . . . Triggered . | . . . . Machines | -11 -10 -10 -9 ---------- Run | Yrd Mat Min Mat Machines Disabled . | . . . . Max in Single Turn . | . . . . Machines Repaired . | . . . . Machines Dismantled . | . . . . Machines Sabotaged . | . . . . Overloaded Fab Kills . | . . . . Hacking | -11 -10 -10 -9 --------- Run | Yrd Mat Min Mat Machines Accessed 4 | . 3 1 . Terminals 3 | . 3 . . Fabricators . | . . . . Repair Stations . | . . . . Recycling Units . | . . . . Scanalyzers . | . . . . Garrison Access . | . . . . Total Hacks 10 | . 9 1 . Successful 5 | . 4 1 . Failed 5 | . 5 . . Catastrophic 2 | . 2 . . Database Lockouts . | . . . . Manual 1 | . 1 . . Terminals 9 | . 9 . . Fabricators . | . . . . Repair Stations . | . . . . Recycling Units . | . . . . Scanalyzers . | . . . . Garrison Access . | . . . . Terminal Hacks 5 | . 4 1 . Robot Analysis 2 | . 2 . . Prototype ID Bank 1 | . 1 . . Open Door 1 | . . 1 . Branch Access Points 1 | . 1 . . Fabricator Hacks . | . . . . Repair Station Hacks . | . . . . Recycling Unit Hacks . | . . . . Scanalyzer . | . . . . Garrison Access Hacks . | . . . . Unauthorized Hacks . | . . . . Terminals . | . . . . Fabricators . | . . . . Repair Stations . | . . . . Recycling Units . | . . . . Scanalyzers . | . . . . Garrison Access . | . . . . Data Cores Recovered . | . . . . Used . | . . . . Hacking Detections 3 | . 3 . . Full Trace Events 1 | . 1 . . Feedback Events . | . . . . Feedback Blocked . | . . . . Robot Schematics Acquired . | . . . . Robots Built . | . . . . Authchips . | . . . . Time . | . . . . Total Robot Build Rating . | . . . . Part Schematics Acquired . | . . . . Parts Built . | . . . . Authchips . | . . . . Time . | . . . . Total Part Build Rating . | . . . . Parts Repaired . | . . . . Time . | . . . . Parts Recycled . | . . . . Recycled Matter . | . . . . Retrieved Matter . | . . . . Retrieved Components . | . . . . Parts Scanalyzed . | . . . . Part Schematics Acquired . | . . . . Parts Damaged . | . . . . Bothacking | -11 -10 -10 -9 ------------ Run | Yrd Mat Min Mat Used RIF Installer . | . . . . Robots Hacked . | . . . . Non-combat . | . . . . Combat . | . . . . Robot Hacks Applied . | . . . . Relay Couplers Released . | . . . . Fabnet Peak Effective % . | . . . . Robots Rewired . | . . . . Allies Hacked . | . . . . Hacks Repelled . | . . . . Allies | -11 -10 -10 -9 -------- Run | Yrd Mat Min Mat Total Allies . | . . . . Largest Group . | . . . . Highest-Rated Group . | . . . . Highest-Rated Ally . | . . . . Total Orders . | . . . . Ally Attacks . | . . . . Total Damage . | . . . . Kills . | . . . . Allies Corrupted . | . . . . Allies Melted . | . . . . Intel | -11 -10 -10 -9 ------- Run | Yrd Mat Min Mat Robot Analysis Total 2 | . 2 . . Derelict Logs Recovered 1 | . . 1 . Drone Launches . | . . . . Drone Recoveries . | . . . . Exploration | -11 -10 -10 -9 ------------- Run | Yrd Mat Min Mat Turns Passed 183 | 3 127 20 33 Spaces Moved 207 | 1 129 30 47 Core . | . . . . Treads . | . . . . Legs . | . . . . Wheels 52 | 1 51 . . Hover 108 | . 78 30 . Flight 47 | . . . 47 Fastest Speed 34 | 80 56 56 34 Average Speed 57 | 80 65 56 34 Slowest Speed 80 | 80 80 56 34 Overloaded Moves . | . . . . Propulsion Burnouts . | . . . . Robots Hopped . | . . . . Cave-ins Triggered . | . . . . Exploration Rate (%) 14 | 2 32 11 12 Regions Visited 3 Branch Regions 1 Pre-discovered Areas . | . . . . Known Exits Taken 1 | . 1 . . Unknown Exits Taken 2 | 1 . 1 . Scrap Searched 1 | . . 1 . Spaces Dug . | . . . . Terrain Destroyed . | . . . . Melee . | . . . . Projectile . | . . . . AOE . | . . . . Terrain Rammed . | . . . . Walls Destroyed . | . . . . Machines Disabled . | . . . . Actions | -11 -10 -10 -9 --------- Run | Yrd Mat Min Mat Total 250 | 2 158 32 58 Wait 2 | . 2 . . Move 204 | . 128 29 47 Hop . | . . . . Pick Up 10 | . 9 1 . Fast Attach . | . . . . Attach 3 | . . . 3 Detach . | . . . . Swap 10 | 2 5 1 2 Drop 10 | . 7 1 2 Fire 7 | . 7 . . Melee 4 | . . . 4 Ram . | . . . . Kick . | . . . . Crush . | . . . . Escape Stasis . | . . . . Rewire . | . . . . Trap . | . . . . Miscellaneous . | . . . . Route ------- -11/Scrapyard -10/Materials -10/Mines -9/Materials History --------- Turn | Location | Event 4 | -11/Scrapyard | Discovered new exit (range 0) 4 | -11/Scrapyard | Entered Materials 60 | -10/Materials | Identified exit to Mines 131 | -10/Materials | Entered Mines 135 | -10/Mines | Learned Materials emergency access door positions 137 | -10/Mines | Discovered new exit (range 8) 141 | -10/Mines | Met a Derelict who couldn't figure out how to use a Trap Extractor 151 | -10/Mines | Entered Materials 151 | -9/Materials | Evolved 2 slots: Propulsion x1, Utility x1 184 | -9/Materials | Self-destructed Last Messages --------------- 00145_ Acquired Katana. 00148_ K-01 Serf collects debris. 00148_ U-05 Engineer lays Concrete. 00148_ R-06 Scavenger collects Carbon-fiber Leg. PARAMETERS=PROPULSION+1,UTILITY+1 LOCATION=UNKNOWN GOAL=ESCAPE Loading Materials emergency access points (x5)... 00152_ O-16 Technician: "IFF HANDSHAKE FAILED. SECURING TERMINAL." 00155_ Dropped Lgt. Assault Rifle. 00157_ Dropped Med. Laser. 00161_ ALERT: Hostiles spotted, dispatching reinforcements to Terminal M009. 00169_ W-16 Scout sends out distress signal. 00173_ K-01 Serf collects debris. 00176_ Flight Unit destroyed. 00181_ S-10 Pest destroyed. 00182_ K-01 Serf collects debris. 00184_ Flight Unit destroyed. 00184_ Lgt. Ion Engine destroyed. Map ----- +----------------------------------------------------+ | ????????# + """ # """ #??????????????????? | | ????????# # """ + """ #??????????????????? | | ????????# # # """ #??????????????????? | | ???????## ########## #??????????????????? | | ????#### ##########+#######??????????????????? | | ???? #?????????????????????? | | ?? T #?????????????????????? | | ?? #?????????????????????? | | ???##### ###+####### #?????????????????????? | | ???????###+###?# #?? #?????????????????????? | | ???????????????# """ #?? #?????????????????????? | | ???????????????# """ #?? +?????????????????????? | | ???????????????# """ #?? #?????????????????????? | | ???????????????# #?# #?????????????????????? | | ???????????????# #?# #?????????????????????? | | ???????????????# #?# #?????????????????????? | | ???????????????# #?# #?????????????????????? | | ???????????????#"S #?# ###???????????????????? | | ???????????????#""" #?# ????????????????????? | | ???????????????# "" #?# #????????????????+????? | | ???????????????# #?# #?????????????????????? | | ???????????????##/###### s##???"""?? ???????????? | | ???##############w##### #?""T"" ???????????? | | ?? sYs #w a ?????????????? | | ?? %=k g """ ???????????????? | | ?? Y *@ #????????????????????? | | ???#########+######+### #????????????????????? | | ?????????????????# ## ##????????????????????? | | ?????????????????# ## #?????????????????????? | | ?????????????????# ## #?????????????????????? | | ?????????????????# ## #?????????????????????? | | ?????????????????# ## #?????????????????????? | | ????????????????? == ## t#?????????????????????? | | ?????????????????#= ## #?????????????????????? | | ?????????????????# ## #?????????????????????? | | ?????????????????# ## #?????????????????????? | | ?????????????????####### #?????????????????????? | | ???????????????????????# #?????????????????????? | | ???????????????????????? #?????????????????????? | | ???????????????????????? #?????????????????????? | | ???????????????????????? #?????????????????????? | | ???????????????????????? ??????????????????????? | | ?????????????????????????????????????????????????? | | ?????????????????????????????????????????????????? | | ?????????????????????????????????????????????????? | | ?????????????????????????????????????????????????? | | ?????????????????????????????????????????????????? | | ?????????????????????????????????????????????????? | | ?????????????????????????????????????????????????? | | ?????????????????????????????????????????????????? | +----------------------------------------------------+ Best States ------------- Heat Dissipation 28 Energy Generation 10 Energy Capacity 125 Matter Stores 280 Matter Capacity 300 Sight Range 16 Terrain Scan Density 10 Evasion (%) 63 Item Schematics ----------------- None Robot Schematics ------------------ None Fabricated ------------ Nothing Alien Tech Used ----------------- None Achievements -------------- None Challenges ------------ None Game ------ Seed NeutrinoMicroMultitool Manual? 0 Play Time 00:06:21 Cumulative 256.3 hours Start 2024.03.12 @ 14:50:38 End 2024.03.12 @ 14:56:22 Sessions 1 Manual Loads 0 Difficulty Rogue Special Mode None Game No. 109 Rogue 69 Adventurer 29 Explorer 11 Win Type - Total 11 Types 6/0/1/2/0/0/1/0/1 Lore% 59 Gallery% 78 Achievement% 76 Wizard Run 0 Options --------- Layout 0 ASCII 0 Keyboard 0 Movement Numpad Keybinds 0 Fullscreen 2 Font 24/Smallcaps Map View 76x50 Zoom Use 0% Tactical HUD 1 Map Filters NONE Filters LOW_CONTRAST(13,24,33) Steam 1 RUN: 64746875-e883-416f-967b-7f69313487d9